bitfinex-derivatives/quotes_ETHF0:USTF0_20250323
["timestamp","ask_amount","ask_price","bid_price","bid_amount"]
[1742763436990,2.39373,1994.1,1994.0,6.83038]
[1742763437185,2.39373,1994.1,1994.0,5.8272]
[1742763438696,2.39373,1994.1,1994.0,3.165]
[1742763445502,1.00318,1994.0,1993.9,7.6952]
[1742763445696,1.3743,1994.0,1993.9,8.69843]
[1742763446404,2.37748,1994.0,1993.9,8.69843]
[1742763446906,2.37748,1994.0,1993.9,4.4874]
[1742763450608,2.37748,1994.0,1993.9,1.3244]
[1742763450796,1.00329,1993.8,1993.7,1.3134]
[1742763450999,1.00329,1993.8,1993.7,2.7135]
[1742763451501,1.00329,1993.8,1993.5,1.4031608]
[1742763451502,3.9141,1993.8,1993.5,0.3997608]
[1742763451705,2.50847,1993.6,1993.1,5.958]
[1742763451910,1.00352,1993.4,1993.2,5.60008]
[1742763452214,1.00354,1993.3,1993.2,4.5965]
[1742763452399,2.41764,1993.3,1993.2,4.5965]
[1742763452595,2.41764,1993.3,1993.2,7.7755]
[1742763453200,2.41764,1993.3,1993.2,3.179]
[1742763453398,3.92302,1993.3,1993.0,1.3168]
[1742763453602,2.4177,1993.2,1993.1,1.00364]
[1742763453910,2.4177,1993.2,1993.1,1.3887]
[1742763454099,2.4177,1993.2,1993.1,2.39234]
[1742763454701,0.695,1993.5,1993.4,1.00349]
[1742763454906,1.69846,1993.5,1993.3,4.18449]
[1742763455108,1.69846,1993.5,1993.4,1.3579]
[1742763455813,1.00346,1993.5,1993.4,1.3579]
[1742763456109,2.36036,1993.5,1993.4,2.6893]
[1742763456513,1.3569,1993.5,1993.4,3.69279]
[1742763460914,3.2078,1993.8,1993.4,2.6893]
[1742763461108,2.38858108,1993.9,1993.7,1.00332]
[1742763461318,1.01074108,1993.9,1993.8,5.2313]
[1742763468610,0.00751108,1993.9,1993.8,9.44239]
[1742763469204,1.31081108,1993.9,1993.8,9.44239]
[1742763469402,2.31404108,1993.9,1993.8,9.44239]
[1742763470614,2.31404108,1993.9,1993.8,8.4391]
[1742763471606,1.31081108,1993.9,1993.8,9.44239]
[1742763474814,0.00751108,1993.9,1993.8,9.44239]
[1742763475815,1.00312,1994.2,1993.8,9.9391]
[1742763476021,2.40452,1994.2,1994.0,1.00314]
[1742763476319,2.40452,1994.2,1994.1,3.8702]
[1742763476510,2.40452,1994.2,1994.1,4.87333]
[1742763478421,2.40452,1994.2,1994.1,3.8702]
[1742763479221,2.40452,1994.2,1994.1,6.16153]
[1742763480727,2.40452,1994.2,1994.1,5.1584]
[1742763481216,2.40452,1994.2,1994.1,3.8702]
[1742763481415,1.00313,1994.1,1994.0,4.21846108]
[1742763481614,3.05743,1994.1,1994.0,7.39946108]
[1742763481815,3.05743,1994.1,1994.0,8.70576108]
[1742763482723,2.0543,1994.1,1994.0,8.70576108]
[1742763484823,3.05743,1994.1,1994.0,7.39946108]
[1742763485416,3.05743,1994.1,1994.0,3.21531108]
[1742763485624,3.05743,1994.1,1994.0,3.18651108]
[1742763491528,3.05743,1994.1,1994.0,4.18969108]
[1742763492428,3.05743,1994.1,1994.0,3.18651108]
[1742763492823,3.05743,1994.1,1994.0,0.00751108]
[1742763493031,3.05743,1994.1,1994.0,3.18451108]
[1742763494920,3.05743,1994.1,1994.0,0.00751108]
[1742763495116,3.05743,1994.1,1994.0,3.18351108]
[1742763500222,3.05743,1994.1,1994.0,0.00751108]
[1742763507338,3.05743,1994.1,1994.0,1.01069108]
[1742763507523,1.3645,1994.1,1994.0,1.01069108]
[1742763507834,1.3645,1994.1,1994.0,2.99499108]
[1742763509133,2.36763,1994.1,1994.0,2.99499108]
[1742763509730,2.36763,1994.1,1994.0,1.99181108]
[1742763510137,3.03253,1994.1,1994.0,1.99181108]
[1742763511437,3.03253,1994.1,1994.0,2.99499108]
[1742763511739,3.03253,1994.1,1994.0,1.99181108]
[1742763511938,3.03253,1994.1,1994.0,2.99499108]
[1742763512735,3.03253,1994.1,1994.0,1.99181108]
[1742763513639,3.03253,1994.1,1994.0,2.99499108]
[1742763514339,3.03253,1994.1,1994.0,1.99181108]
[1742763515837,3.03253,1994.1,1994.0,2.99499108]
[1742763515838,2.0294,1994.1,1994.0,2.99499108]
[1742763516040,1.3645,1994.1,1994.0,2.99499108]
[1742763516429,5.57543,1994.1,1994.0,0.00751108]
[1742763516735,6.21983,1994.1,1994.0,0.00751108]
[1742763529751,6.21983,1994.1,1994.0,1.37781108]
[1742763531357,5.57543,1994.1,1994.0,1.37781108]
[1742763531656,5.57543,1994.1,1994.0,2.04771108]
[1742763533350,5.57543,1994.1,1994.0,5.22171108]
[1742763538149,5.57543,1994.1,1994.0,0.00751108]
[1742763542260,5.57543,1994.1,1994.0,1.08e-06]
[1742763558287,2.36763,1994.1,1994.0,1.08e-06]
[1742763558585,5.57543,1994.1,1994.0,1.08e-06]
[1742763559185,2.36763,1994.1,1994.0,1.08e-06]
[1742763559388,5.57543,1994.1,1994.0,1.08e-06]
[1742763563188,8.74143,1994.1,1994.0,1.08e-06]
[1742763563990,17.10343,1994.1,1994.0,1.08e-06]
[1742763564193,18.00954055,1994.1,1994.0,1.08e-06]
[1742763571497,17.10343,1994.1,1994.0,1.08e-06]
[1742763572998,18.00770757,1994.1,1994.0,1.08e-06]
[1742763573400,17.10343,1994.1,1994.0,1.08e-06]
[1742763575503,18.00763022,1994.1,1994.0,1.08e-06]
[1742763575693,17.10343,1994.1,1994.0,1.08e-06]
[1742763575893,14.60343,1994.1,1994.0,1.08e-06]
[1742763577605,15.50759696,1994.1,1994.0,1.08e-06]
[1742763578796,12.29979696,1994.1,1994.0,1.08e-06]
[1742763579103,15.50759696,1994.1,1994.0,1.08e-06]
[1742763580294,18.78945253,1994.1,1994.0,1.08e-06]
[1742763580503,18.86815937,1994.1,1994.0,1.08e-06]
[1742763581001,1.00344,1993.5,1993.4,1.3399]
[1742763581199,4.21124,1993.5,1993.4,1.3399]
[1742763581499,4.21124,1993.5,1993.3,0.6778]
[1742763581500,1.00349,1993.4,1993.3,0.6778]
[1742763581699,1.00359,1993.2,1993.1,0.6834]
[1742763581900,4.21139,1993.2,1993.1,0.6834]
[1742763582902,5.59239,1993.2,1993.1,0.6834]
[1742763587103,5.59239,1993.2,1993.1,2.0443]
[1742763587304,3.2078,1993.2,1993.1,2.0443]
[1742763587498,5.862,1993.5,1993.3,1.00354]
[1742763587499,4.21133,1993.4,1993.3,1.00354]
[1742763587700,3.2078,1993.4,1993.3,1.00354]
[1742763587898,4.21129,1993.4,1993.3,1.00354]
[1742763588106,1.00349,1993.4,1993.3,3.01744]
[1742763591405,4.21129,1993.4,1993.3,2.0139]
[1742763591613,5.51239,1993.4,1993.3,5.1849]
[1742763594915,5.51239,1993.4,1993.3,6.18844]
[1742763595315,5.51239,1993.4,1993.3,5.1849]
[1742763595810,5.51239,1993.4,1993.3,6.18844]
[1742763599126,2.30459,1993.4,1993.3,6.18844]
[1742763599727,2.30459,1993.4,1993.3,5.1849]
[1742763600324,2.30459,1993.4,1993.3,2.0139]
[1742763600524,1.00364,1993.1,1993.0,2.32539]
[1742763600829,1.00364,1993.1,1993.0,5.1608]
[1742763601829,4.21144,1993.1,1993.0,6.16449]
[1742763602025,4.21144,1993.1,1993.0,5.1608]
[1742763603123,3.2078,1993.1,1992.7,3.2078]
[1742763603329,1.00384,1992.7,1992.6,5.8441]
[1742763603625,4.21147,1993.1,1992.7,3.85865]
[1742763603824,4.21147,1993.1,1992.6,7.7028]
[1742763603825,4.6244,1993.1,1992.8,1.3491]
[1742763604024,1.00374,1992.9,1992.8,4.5291]
[1742763604226,1.00374,1992.9,1992.8,1.3491]
[1742763604420,1.00374,1992.9,1992.7,1.00381]
[1742763604421,1.00394,1992.5,1992.4,6.96198]
[1742763604626,1.00394,1992.5,1992.4,5.2125]
[1742763604932,1.00394,1992.5,1992.4,2.0285]
[1742763605141,8.9118,1992.5,1991.9,3.2078]
[1742763605442,4.21176,1992.5,1992.1,2.51036]
[1742763605641,1.00404,1992.3,1992.2,0.682]
[1742763605842,1.00404,1992.3,1992.2,3.219]
[1742763606037,1.00404,1992.3,1992.2,4.22309]
[1742763606238,1.00406,1992.3,1992.2,1.00406]
[1742763606645,1.00412,1992.2,1992.1,1.00412]
[1742763606845,1.3746,1992.2,1992.1,1.00414]
[1742763607545,2.37869,1992.2,1992.1,1.00414]
[1742763607737,2.37869,1992.2,1992.1,1.64916433]
[1742763608141,2.37869,1992.2,1992.1,0.64502433]
[1742763608839,2.37869,1992.2,1991.9,0.6794]
[1742763608840,1.00419,1992.0,1991.9,0.6794]
[1742763609240,1.00428,1991.9,1991.8,1.00428]
[1742763609448,1.3616,1991.9,1991.8,0.64447357]
[1742763609942,2.36586,1991.9,1991.8,1.64876357]
[1742763610145,0.00753031,1992.1,1991.8,0.64447357]
[1742763610454,0.00753031,1992.1,1991.8,1.64876357]
[1742763610455,1.403,1991.9,1991.8,1.64876357]
[1742763610751,1.403,1991.9,1991.8,3.00010306]
[1742763610949,1.403,1991.9,1991.8,2.31616357]
[1742763611846,2.40724,1991.9,1991.8,1.31187357]
[1742763612044,1.403,1991.9,1991.8,1.64876357]
[1742763612244,2.40724,1991.9,1991.8,2.31616357]
[1742763612441,2.40724,1991.9,1991.8,0.64447357]
[1742763612745,2.40724,1991.9,1991.8,4.90176357]
[1742763612941,2.40724,1991.9,1991.8,3.89747357]
[1742763613149,2.40724,1991.9,1991.8,0.64447357]
[1742763613337,1.403,1991.9,1991.8,4.90076357]
[1742763613543,2.40724,1991.9,1991.8,4.90076357]
[1742763613744,2.40724,1991.9,1991.8,3.89647357]
[1742763614048,1.403,1991.9,1991.8,1.64876357]
[1742763614743,2.40724,1991.9,1991.8,0.64447357]
[1742763615047,2.40724,1991.9,1991.8,3.89547357]
[1742763615448,2.40724,1991.9,1991.8,3.251]
[1742763615952,2.40724,1991.9,1991.8,4.25429]
[1742763616153,1.00431,1991.8,1991.7,1.00431]
[1742763616341,3.64971,1991.8,1991.7,4.25431]
[1742763616652,1.2922,1991.8,1991.7,4.89693411]
[1742763617244,2.29649,1991.8,1991.7,4.89693411]
[1742763617442,1.2922,1991.8,1991.7,1.64693411]
[1742763617644,1.2922,1991.8,1991.7,4.89493411]
[1742763617848,1.2922,1991.8,1991.7,5.41683895]
[1742763618245,2.29649,1991.8,1991.7,5.41683895]
[1742763618947,1.2922,1991.8,1991.7,4.77421484]
[1742763619746,2.29649,1991.8,1991.7,4.77414521]
[1742763620139,1.2922,1991.8,1991.7,1.00431]
[1742763620350,2.29649,1991.8,1991.7,4.77212859]
[1742763620551,1.2922,1991.8,1991.7,4.25031]
[1742763620746,2.29649,1991.8,1991.7,4.77217341]
[1742763620951,1.2922,1991.8,1991.7,4.77217341]
[1742763621151,2.51789031,1992.1,1991.7,17.94446341]
[1742763621152,0.00753031,1992.1,1991.7,17.94446341]
[1742763621350,0.00753031,1992.1,1992.0,1.00419]
[1742763621554,4.6053,1992.6,1992.5,1.00394]
[1742763621755,4.6053,1992.6,1992.5,4.25694]
[1742763622148,1.3975,1992.6,1992.5,4.25694]
[1742763622459,3.2078,1992.9,1992.8,1.00379]
[1742763622656,1.3975,1992.9,1992.8,4.26079]
[1742763623752,2.40124,1992.9,1992.8,4.26079]
[1742763623954,1.3975,1992.9,1992.8,4.26079]
[1742763624156,2.40124,1992.9,1992.8,4.26079]
[1742763624658,2.40124,1992.9,1992.8,5.62759]
[1742763628156,2.40124,1992.9,1992.8,4.6238]
[1742763629653,2.40124,1992.9,1992.8,5.62759]
[1742763629962,2.40124,1992.9,1992.8,4.6238]
[1742763632367,2.40124,1992.9,1992.8,1.3668]
[1742763632565,2.40124,1992.9,1992.8,4.6128]
[1742763633754,2.40124,1992.9,1992.8,5.61659]
[1742763633958,1.3975,1992.9,1992.8,5.61659]
[1742763634163,1.3975,1992.9,1992.8,6.30249]
[1742763635270,2.40124,1992.9,1992.8,6.30249]
[1742763643669,2.40124,1992.9,1992.8,4.93569]
[1742763643868,0.00753031,1993.0,1992.9,1.00374]
[1742763644068,0.00753031,1993.0,1992.9,2.82602898]
[1742763644369,1.30373031,1993.0,1992.9,2.82609844]
[1742763645362,0.00753031,1993.0,1992.9,2.82609844]
[1742763645670,0.00753031,1993.0,1992.9,5.32609844]
[1742763646869,0.00753031,1993.0,1992.9,2.82609844]
[1742763647061,0.00753031,1993.0,1992.9,8.78409844]
[1742763647561,0.00753031,1993.0,1992.9,9.42840705]
[1742763647870,0.00753031,1993.0,1992.9,9.4288369]
[1742763648166,0.00753031,1993.0,1992.9,10.11337058]
[1742763649870,0.00753031,1993.0,1992.9,10.11444855]
[1742763650572,0.00753031,1993.0,1992.9,10.11546291]
[1742763652172,0.00753031,1993.0,1992.9,10.11628685]
[1742763653976,0.00753031,1993.0,1992.9,10.11632211]
[1742763655272,0.00753031,1993.0,1992.9,13.32412211]
[1742763656170,0.00753031,1993.0,1992.9,13.3246026]
[1742763658067,0.00753031,1993.0,1992.9,13.32444993]
[1742763660279,0.00753031,1993.0,1992.9,13.32440865]
[1742763661478,0.00753031,1993.0,1992.9,12.11324861]
[1742763661679,0.00753031,1993.0,1992.9,13.32448135]
[1742763665081,0.00753031,1993.0,1992.9,7.81354135]
[1742763665284,1.39163031,1993.0,1992.9,11.03454135]
[1742763665581,1.39163031,1993.0,1992.9,11.03495925]
[1742763665973,1.39163031,1993.0,1992.9,11.03497439]
[1742763666178,2.39532031,1993.0,1992.9,12.03871439]
[1742763667683,2.39532031,1993.0,1992.9,12.03899852]
[1742763669589,2.39532031,1993.0,1992.9,12.03930659]
[1742763670278,2.39532031,1993.0,1992.9,11.03556659]
[1742763670477,2.39532031,1993.0,1992.9,5.07756659]
[1742763670887,2.39532031,1993.0,1992.9,1.85656659]
[1742763671084,2.39532031,1993.0,1992.9,5.07256659]
[1742763671275,2.39532031,1993.0,1992.9,6.07630659]
[1742763671481,1.39163031,1993.0,1992.9,6.07630659]
[1742763671680,1.39163031,1993.0,1992.9,7.36650659]
[1742763672083,2.70363031,1993.0,1992.9,7.36650659]
[1742763672579,1.31953031,1993.0,1992.9,7.36650659]
[1742763672889,0.6787,1993.2,1993.1,1.00364]
[1742763673088,0.6787,1993.2,1993.1,5.43289798]
[1742763673288,1.68229,1993.2,1993.1,6.07720659]
[1742763673489,1.68229,1993.2,1993.1,6.07829753]
[1742763674081,1.68229,1993.2,1993.1,6.07828723]
[1742763675591,1.68229,1993.2,1993.1,6.07853249]
[1742763675793,0.6787,1993.2,1993.1,6.07853249]
[1742763675990,3.02899,1993.2,1993.1,6.07853249]
[1742763676492,2.0254,1993.2,1993.1,6.07853249]
[1742763676886,1.3467,1993.2,1993.1,6.07853249]
[1742763677080,1.3467,1993.2,1993.1,6.72203249]
[1742763677788,1.3467,1993.2,1993.1,9.92983249]
[1742763679588,2.35029,1993.2,1993.1,1.85789249]
[1742763679888,1.00394,1992.5,1992.4,1.01150031]
[1742763680092,1.00394,1992.5,1992.4,3.23653031]
[1742763680285,1.00394,1992.5,1992.4,4.24052031]
[1742763680485,1.2811,1992.6,1992.5,1.00394]
[1742763680888,1.2811,1992.6,1992.5,6.26864]
[1742763682780,1.0037,1993.0,1992.6,2.50966]
[1742763682985,1.0037,1993.0,1992.9,1.00371]
[1742763683193,1.00369,1993.0,1992.9,4.23374]
[1742763684093,1.00367,1993.1,1993.0,1.00368]
[1742763684288,1.00369,1993.0,1992.9,4.9314]
[1742763685391,1.00369,1993.0,1992.9,3.9277]
[1742763685590,1.00369,1993.0,1992.9,3.23]
[1742763686594,1.00369,1993.0,1992.9,4.23374]
[1742763688097,1.00369,1993.0,1992.9,3.23]
[1742763688590,1.00369,1993.0,1992.9,4.23374]
[1742763691292,1.00369,1993.0,1992.9,3.23]
[1742763699702,3.84895,1993.1,1992.7,1.3953]
[1742763699908,1.00384,1992.7,1992.6,2.32698]
[1742763700108,1.00384,1992.7,1992.6,5.54698]
[1742763700707,2.41764,1992.7,1992.6,5.54698]
[1742763705211,2.41764,1992.7,1992.6,4.22388]
[1742763705414,2.41764,1992.7,1992.6,4.599]
[1742763706309,2.41764,1992.7,1992.6,4.22389]
[1742763706515,2.41764,1992.7,1992.6,5.60289]
[1742763710920,2.41764,1992.7,1992.6,4.599]
[1742763713338,2.41764,1992.7,1992.5,5.55731]
[1742763713339,1.00389,1992.6,1992.5,1.3456]
[1742763713524,2.95899,1992.6,1992.5,3.8864]
[1742763715525,2.95899,1992.6,1992.5,4.54610175]
[1742763716228,2.95899,1992.6,1992.5,5.91850175]
[1742763724139,2.95899,1992.6,1992.5,6.92244175]
[1742763724835,2.95899,1992.6,1992.5,5.91850175]
[1742763731134,2.95899,1992.6,1992.5,6.92244175]
[1742763731940,2.95899,1992.6,1992.5,5.91850175]
[1742763733234,2.95899,1992.6,1992.5,6.92244175]
[1742763734647,3.2078,1992.8,1992.7,1.00384]
[1742763734844,4.21159,1992.8,1992.7,4.20184]
[1742763735038,4.21159,1992.8,1992.7,3.198]
[1742763735345,4.21159,1992.8,1992.7,4.5938]
[1742763735550,1.00379,1992.8,1992.7,4.5938]
[1742763735737,1.65289,1992.8,1992.7,4.5938]
[1742763737746,1.65289,1992.8,1992.7,5.25385373]
[1742763738643,3.21701,1993.1,1992.7,5.25385373]
[1742763738644,1.00365,1993.1,1993.0,1.00364]
[1742763738846,1.00365,1993.1,1993.0,4.20164]
[1742763739050,4.21142,1993.2,1993.1,1.00364]
[1742763739644,1.00364,1993.1,1993.0,4.20165]
[1742763740045,2.35134,1993.1,1993.0,5.49475]
[1742763740451,1.3477,1993.1,1993.0,6.15446569]
[1742763740755,2.35134,1993.1,1993.0,6.15446569]
[1742763740943,0.00753031,1993.3,1993.0,10.86777569]
[1742763741143,0.00753031,1993.3,1993.2,4.21139]
[1742763741345,1.0034,1993.6,1993.2,6.4098]
[1742763741653,1.0034,1993.6,1993.5,1.00341]
[1742763741854,1.0034,1993.6,1993.5,3.203]
[1742763742054,1.0034,1993.6,1993.5,5.18731569]
[1742763742548,1.0034,1993.6,1993.5,5.53104]
[1742763743352,1.31653031,1993.7,1993.6,1.00339]
[1742763743751,1.31653031,1993.7,1993.6,2.35329]
[1742763743947,2.31987031,1993.7,1993.6,2.35329]
[1742763745157,2.31987031,1993.7,1993.6,1.3499]
[1742763746659,1.31653031,1993.7,1993.6,2.35329]
[1742763746956,2.31987031,1993.7,1993.6,2.35329]
[1742763747157,1.31653031,1993.7,1993.6,2.35329]
[1742763749159,2.31987031,1993.7,1993.6,2.35329]
[1742763750347,1.31653031,1993.7,1993.5,3.21053031]
[1742763750553,2.35299,1993.6,1993.5,3.21053031]
[1742763750754,3.01649,1993.6,1993.5,3.21053031]
[1742763752358,3.01649,1993.6,1993.5,4.62513031]
[1742763768867,3.01649,1993.6,1993.5,5.2842619]
[1742763770868,3.01649,1993.6,1993.5,3.8696619]
[1742763772964,3.01649,1993.6,1993.5,5.2562619]
[1742763777675,0.00753031,1993.7,1993.6,1.00339]
[1742763777871,1.01090031,1993.7,1993.6,1.3202]
[1742763778479,1.70230031,1993.7,1993.6,1.97933159]
[1742763778879,3.02690031,1993.7,1993.6,1.97933159]
[1742763779878,3.02690031,1993.7,1993.6,5.17133159]
[1742763780178,3.02690031,1993.7,1993.6,1.97933159]
[1742763780375,3.02690031,1993.7,1993.6,3.85013159]
[1742763780875,3.02690031,1993.7,1993.6,0.65913159]
[1742763781076,3.02690031,1993.7,1993.6,3.85013159]
[1742763781781,3.02690031,1993.7,1993.6,0.65913159]
[1742763782182,3.02690031,1993.7,1993.6,3.84913159]
[1742763804389,2.33550031,1993.7,1993.6,3.84913159]
[1742763810702,2.33550031,1993.7,1993.6,6.14572159]
[1742763810703,0.00753031,1993.7,1993.6,6.14572159]
[1742763811198,1.01087031,1993.7,1993.6,6.14572159]
[1742763815800,0.00753031,1993.7,1993.6,6.14572159]
[1742763816603,1.01087031,1993.7,1993.6,6.14572159]
[1742763817999,0.00753031,1993.7,1993.6,6.14572159]
[1742763819307,1.01087031,1993.7,1993.6,6.14572159]
[1742763819802,0.00753031,1993.7,1993.6,6.14572159]
[1742763820003,1.01087031,1993.7,1993.6,6.14572159]
[1742763820202,0.00753031,1993.7,1993.6,6.14572159]
[1742763821699,1.00318,1994.0,1993.6,10.15074159]
[1742763821898,1.00318,1994.0,1993.7,2.7201]
[1742763822096,2.31288,1994.1,1994.0,1.00318]
[1742763822311,2.31288,1994.1,1994.0,4.17618]
[1742763822505,2.31288,1994.1,1994.0,4.83531159]
[1742763822812,2.31288,1994.1,1994.0,3.83213159]
[1742763823107,2.31288,1994.1,1994.0,6.20421159]
[1742763823406,2.31288,1994.1,1994.0,5.20103159]
[1742763823614,3.02178,1994.1,1994.0,5.20103159]
[1742763823901,3.02178,1994.1,1994.0,6.56503159]
[1742763824308,3.02178,1994.1,1994.0,5.9059]
[1742763824608,3.02178,1994.1,1994.0,5.2382]
[1742763826003,1.00334,1993.7,1993.6,5.958]
[1742763826210,1.00334,1993.7,1993.6,4.5218]
[1742763826610,1.00334,1993.7,1993.6,5.18103149]
[1742763827212,2.37144,1993.7,1993.6,7.57742149]
[1742763829313,2.37144,1993.7,1993.6,1.35653149]
[1742763829520,2.37144,1993.7,1993.6,0.65923149]
[1742763829713,2.37144,1993.7,1993.6,3.84023149]
[1742763834709,2.37144,1993.7,1993.6,3.84040293]
[1742763845028,2.37144,1993.7,1993.6,5.21680293]
[1742763852738,2.37144,1993.7,1993.6,6.22019293]
[1742763852739,1.00334,1993.7,1993.6,6.22019293]
[1742763852932,1.00331,1993.8,1993.7,1.00334]
[1742763853125,1.00331,1993.8,1993.7,2.39564]
[1742763853624,1.00331,1993.8,1993.7,3.05504293]
[1742763854131,1.00331,1993.8,1993.7,2.05170293]
[1742763854536,1.00331,1993.8,1993.7,3.05504293]
[1742763861228,1.00331,1993.8,1993.7,2.05170293]
[1742763861433,1.00331,1993.8,1993.7,3.82940293]
[1742763861634,3.09761,1993.8,1993.7,3.82940293]
[1742763862536,3.09761,1993.8,1993.7,3.17]
[1742763864941,1.00339,1993.6,1993.5,0.71403031]
[1742763865136,1.00339,1993.6,1993.5,3.17953031]
[1742763865641,3.00199,1993.6,1993.5,3.17953031]
[1742763869144,2.34049,1993.6,1993.5,3.17953031]
[1742763869741,2.34049,1993.6,1993.5,5.19985811]
[1742763870642,2.34049,1993.6,1993.5,6.20329811]
[1742763871943,1.00339,1993.6,1993.5,6.20329811]
[1742763872345,2.39599,1993.6,1993.5,6.20329811]
[1742763875448,2.39599,1993.6,1993.5,5.19985811]
[1742763876455,1.00329,1993.8,1993.5,5.19985811]
[1742763876751,2.4076,1993.8,1993.7,1.00334]
[1742763876939,1.4043,1993.8,1993.7,4.17634]
[1742763877145,4.21106,1993.9,1993.7,4.17634]
[1742763877344,5.61796,1993.9,1993.8,1.00329]
[1742763877546,5.61796,1993.9,1993.8,2.38779]
[1742763877945,5.61796,1993.9,1993.8,3.0471178]
[1742763878146,2.41016,1993.9,1993.8,3.0471178]
[1742763880042,1.4069,1993.9,1993.8,3.0471178]
[1742763880247,1.00323,1993.9,1993.8,3.0471178]
[1742763881157,1.4174,1994.1,1993.9,1.00323]
[1742763881357,2.42053,1994.1,1994.0,5.1112]
[1742763881650,2.42053,1994.1,1994.0,6.11438]
[1742763881854,2.42053,1994.1,1994.0,6.7737078]
[1742763882557,1.4174,1994.1,1994.0,6.7737078]
[1742763882950,2.42053,1994.1,1994.0,6.7737078]
[1742763887156,2.42053,1994.1,1994.0,5.7705278]
[1742763887856,2.42053,1994.1,1994.0,5.1112]
[1742763888960,2.42053,1994.1,1994.0,5.76942212]
[1742763889158,2.42053,1994.1,1994.0,6.77260212]
[1742763889560,2.42053,1994.1,1994.0,6.11438]
[1742763891659,2.42053,1994.1,1994.0,6.77239409]
[1742763892756,2.42053,1994.1,1994.0,5.76921409]
[1742763892961,2.42053,1994.1,1994.0,5.1112]
[1742763893163,3.08493,1994.1,1994.0,5.1112]
[1742763893658,3.08493,1994.1,1994.0,6.11438]
[1742763893962,3.08493,1994.1,1994.0,5.1112]
[1742763896060,3.08493,1994.1,1994.0,3.8289]
[1742763898672,3.08493,1994.1,1994.0,5.1928]
[1742763899072,3.08493,1994.1,1994.0,5.85114828]
[1742763900761,3.72933,1994.1,1994.0,4.48724828]
[1742763901863,3.72933,1994.1,1994.0,0.65834828]
[1742763902069,3.72933,1994.1,1994.0,3.82434828]
[1742763902270,3.72933,1994.1,1994.0,0.65834828]
[1742763902473,3.72933,1994.1,1994.0,3.82434828]
[1742763909385,3.72933,1994.1,1994.0,5.23844828]
[1742763910182,3.72933,1994.1,1994.0,3.82434828]
[1742763910483,6.93713,1994.1,1994.0,0.65834828]
[1742763910678,6.93713,1994.1,1994.0,3.82134828]
[1742763911379,6.93713,1994.1,1994.0,3.163]
[1742763912179,6.93713,1994.1,1994.0,3.82317383]
[1742763912588,6.93713,1994.1,1994.0,3.163]
[1742763925297,5.934,1994.1,1993.7,48.466]
[1742763925494,1.00334,1993.7,1993.6,1.2823]
[1742763925796,1.00334,1993.7,1993.6,6.10840902]
[1742763928501,1.00334,1993.7,1993.6,5.10501902]
[1742763930498,1.00334,1993.7,1993.6,6.10840902]
[1742763930897,2.30444,1993.7,1993.6,5.10501902]
[1742763931093,2.30444,1993.7,1993.6,6.10840902]
[1742763931493,2.30444,1993.7,1993.6,5.10501902]
[1742763933701,2.30444,1993.7,1993.6,6.10840902]
[1742763934201,2.30444,1993.7,1993.6,5.10501902]
[1742763934388,1.00334,1993.7,1993.6,6.10836902]
[1742763936397,1.00332,1993.8,1993.7,1.00333]
[1742763936589,1.00332,1993.8,1993.7,2.29173]
[1742763936995,1.00332,1993.8,1993.7,2.95144902]
[1742763941598,2.33452,1993.8,1993.7,2.95144902]
[1742763942093,2.33452,1993.8,1993.7,1.94811902]
[1742763943693,2.33452,1993.8,1993.7,2.95145902]
[1742763956524,2.33452,1993.8,1993.7,1.66305902]
[1742763956728,5.54232,1993.8,1993.7,0.65971902]
[1742763957828,2.33452,1993.8,1993.7,0.65971902]
[1742763959328,2.33452,1993.8,1993.7,1.95351902]
[1742763960324,2.33452,1993.8,1993.7,0.65971902]
[1742763964631,2.33452,1993.8,1993.7,1.66305902]
[1742763964829,2.33452,1993.8,1993.7,3.03265902]
[1742763965131,2.33452,1993.8,1993.7,2.02931902]
[1742763965528,2.33452,1993.8,1993.7,3.03265902]
[1742763967228,1.3312,1993.8,1993.7,3.03265902]
[1742763967430,1.3312,1993.8,1993.7,6.24045902]
[1742763972431,1.3312,1993.8,1993.7,12.19845902]
[1742763992354,1.3312,1993.8,1993.7,12.88195902]
[1742763997347,0.6863,1994.1,1994.0,1.00318]
[1742763997661,0.6863,1994.1,1994.0,4.16618]
[1742763997960,0.6863,1994.1,1994.0,4.82589902]
[1742763998258,0.6863,1994.1,1994.0,6.21409902]
[1742764002664,1.9921,1994.1,1994.0,6.21409902]
[1742764009260,1.9921,1994.1,1994.0,9.42189902]
[1742764009460,1.9921,1994.1,1994.0,4.82589902]
[1742764009665,2.99523,1994.1,1994.0,4.16618]
[1742764009968,2.99523,1994.1,1994.0,4.82573947]
[1742764011767,2.99523,1994.1,1994.0,0.65955947]
[1742764012070,6.20303,1994.1,1994.0,3.82155947]
[1742764012866,6.20303,1994.1,1994.0,3.162]
[1742764014960,6.20303,1994.1,1993.8,48.464]
[1742764014961,1.00323,1993.9,1993.8,48.464]
[1742764015163,1.00339,1993.6,1993.5,1.01093031]
[1742764015369,1.00339,1993.6,1993.5,4.17293031]
[1742764015872,1.00339,1993.6,1993.5,4.83237384]
[1742764016073,1.00339,1993.6,1993.5,3.82897384]
[1742764016267,2.30679,1993.6,1993.5,0.66697384]
[1742764016467,2.30679,1993.6,1993.5,3.82897384]
[1742764018164,2.30679,1993.6,1993.5,5.22207384]
[1742764019273,2.30679,1993.6,1993.5,6.22551384]
[1742764019779,2.30679,1993.6,1993.5,5.22207384]
[1742764023877,2.30679,1993.6,1993.5,5.22307384]
[1742764030476,2.30679,1993.6,1993.5,6.22651384]
[1742764032283,2.30679,1993.6,1993.5,5.22307384]
[1742764037488,2.30679,1993.6,1993.5,5.89817384]
[1742764068705,3.2078,1994.1,1993.5,6.90161384]
[1742764068903,1.00325,1993.9,1993.7,1.0033]
[1742764069105,1.00325,1993.9,1993.8,5.1973]
[1742764070100,1.00325,1993.9,1993.8,5.85674353]
[1742764072707,1.00325,1993.9,1993.8,6.86003353]
[1742764073110,1.00325,1993.9,1993.8,5.85674353]
[1742764073809,1.00325,1993.9,1993.8,0.65944353]